[Event "9th Porticcio Open 2024"]
[Site "Porticcio"]
[Date "2024.07.03"]
[Round "7.2"]
[White "Bailet, Pierre"]
[Black "Bulmaga, Irina"]
[Result "1/2-1/2"]
[ECO "C70"]
[WhiteElo "2491"]
[BlackElo "2391"]
[Annotator "TA"]
[PlyCount "99"]
[EventDate "2024.07.01"]
[EventType "swiss"]
[EventCountry "FRA"]
[SourceTitle "playchess.com"]
[Source "ChessBase"]
[SourceQuality "1"]
[TimeControl "5400+30"]

{[%evp 16,99,83,48,66,-13,-8,-19,-6,-12,-9,-27,-17,-22,0,-16,-15,-17,-10,-14,-11,-15,0,0,55,0,2,-25,12,6,14,23,10,-6,16,0,35,27,55,60,55,57,49,26,44,15,40,43,41,47,45,0,0,0,0,0,0,0,0,0,0,0,0,0,0,0,0,0,0,0,0,0,0,0,0,0,0,0,0,0,0,0,0,0,0,0]} 1. e4 {[%emt 0:00:15]} e5 {[%emt 0:00:07]} 2. Nf3 {[%emt 0:00:14]} Nc6 {[%emt 0:00:08]} 3. Bb5 {[%emt 0:00:23]} a6 {[%emt 0:00:10]} 4. Ba4 {[%emt 0:00:10]} f5 {[%emt 0:00:08]} 5. d4 {[%emt 0:00:26]} exd4 {[%emt 0:00:21]} 6. e5 {[%emt 0:00:38] C70: Ruy Lopez: 3...a6 4 Ba4, Norwegian and Delayed Schliemann.} b5 $1 {[%emt 0:00:25][%mdl 4] is currently scoring better than 6...Bc5.} 7. Bb3 {[%emt 0:00:12]} Na5 {[%emt 0:00:54]} 8. Nxd4 {[%emt 0:04:40]} Bb7 {[%emt 0:00:44]} 9. O-O {[%emt 0:22:58]} c5 {[%emt 0:01:17]} 10. Bxg8 {[%emt 0:03:08]} (10. Nxf5 $14 c4 11. Qg4) 10... cxd4 $11 {[%emt 0:01:45]} 11. Bb3 {[%emt 0:00:24]} Nxb3 {[%emt 0:01:57]} 12. axb3 {[%emt 0:00:11]} Qb6 {[%emt 0:07:06]} 13. Nd2 {[%emt 0:07:09]} Bc5 {[%emt 0:04:54]} 14. Nf3 {[%emt 0:08:36]} Qc6 $146 {[%emt 0:03:59]} ({Predecessor:} 14... O-O-O 15. b4 Bxb4 16. Qxd4 Bc5 17. Qc3 b4 18. Qd3 g5 19. Be3 g4 20. Nh4 f4 21. Bxf4 {1-0 Martinez Alcantara,J (2619)-Sychev,K (2547) Titled Tuesday intern op 16th May Early blitz 2023 (5)}) 15. b4 {[%emt 0:11:10]} Bxb4 {[%emt 0:07:40]} 16. Qxd4 {[%emt 0:00:47]} Bc5 {[%emt 0:03:06]} 17. Qd3 {[%emt 0:01:05]} O-O {[%emt 0:03:17]} 18. Be3 {[%emt 0:02:58]} Be7 {[%emt 0:04:29]} 19. Rfd1 {[%emt 0:11:12]} Rad8 {[%emt 0:02:53]} (19... f4 $11 20. Bd2 Bc5) 20. Rac1 {[%emt 0:02:08]} ({White should try} 20. Bd2 $1 $14) 20... Qg6 $11 {[%emt 0:12:09]} 21. Ne1 {[%emt 0:01:15]} Be4 {[%emt 0:01:50]} 22. Qb3+ $1 {[%emt 0:00:50]} Kh8 {[%emt 0:00:18]} 23. f3 {[%emt 0:00:20]} Bc6 {[%emt 0:00:51]} 24. Qc3 {[%emt 0:02:11]} Rc8 {[%emt 0:04:16]} 25. Qd2 {[%emt 0:00:08]} Qe6 {[%emt 0:09:41]} 26. Nd3 {[%emt 0:02:28]} Bb7 {[%emt 0:04:04]} 27. Bg5 {[%emt 0:02:17]} Bxg5 {[%emt 0:06:07]} 28. Qxg5 {[%emt 0:00:11]} d6 {[%emt 0:02:06]} 29. exd6 {[%emt 0:03:33]} Qxd6 {[%emt 0:00:02]} 30. Qf4 {[%emt 0:00:24]} (30. h3 {looks sharper.} Kg8 31. Nf4 Qc7 32. Rd4) 30... Qxf4 {[%emt 0:03:04]} 31. Nxf4 {[%emt 0:00:05]} Rfd8 {[%emt 0:01:25]} 32. Ne6 {[%emt 0:05:18]} Re8 {[%emt 0:00:17]} 33. Nxg7 {[%emt 0:01:47]} Kxg7 {[%emt 0:01:45]} 34. Rd7+ {[%emt 0:00:05]} Kg6 {[%emt 0:02:20]} 35. Rxb7 {[%emt 0:00:06]} Re2 {[%emt 0:00:56]} 36. h4 {[%emt 0:03:43]} Rcxc2 {[%emt 0:01:36]} 37. Rb6+ {[%emt 0:00:31]} Kh5 {[%emt 0:04:07]} 38. Rxc2 {[%emt 0:00:09]} Rxc2 {[%emt 0:00:01]} 39. Rxa6 {[%emt 0:02:20]} Kxh4 {[%emt 0:00:28]} 40. Rh6+ {[%emt 0:01:57]} Kg5 {[%emt 0:00:09]} (40... Kg3 $5 41. Rh3+ $8 Kf4 $11) 41. Rxh7 {[%emt 0:00:05]} Rxb2 {[%emt 0:00:15]} 42. Kh2 {[%emt 0:00:30]} b4 {[%emt 0:01:48]} 43. Rb7 {[%emt 0:01:09]} Kf4 {[%emt 0:00:38]} 44. Rb5 {[%emt 0:00:13]} b3 {[%emt 0:00:30]} 45. Kh3 {[%emt 0:00:46]} Rb1 {[%emt 0:01:10]} 46. Kh2 {[%emt 0:00:39]} Rb2 {[%emt 0:05:12]} 47. Kh3 {[%emt 0:00:07]} Rb1 {[%emt 0:00:21]} 48. Kh2 {[%emt 0:00:13]} Rb2 {[%emt 0:00:21]} 49. Kh3 {[%emt 0:00:13]} Rb1 {[%emt 0:00:02]} 50. Kh2 {[%emt 0:03:13]} 1/2-1/2

[Event "9th Porticcio Open 2024"]
[Site "Porticcio"]
[Date "2024.07.03"]
[Round "7.3"]
[White "Lagarde, Maxime"]
[Black "Anwesh, Upadhyaya"]
[Result "1-0"]
[ECO "A11"]
[WhiteElo "2604"]
[BlackElo "2354"]
[Annotator "TA"]
[PlyCount "115"]
[EventDate "2024.07.01"]
[EventType "swiss"]
[EventCountry "FRA"]
[SourceTitle "playchess.com"]
[Source "ChessBase"]
[SourceQuality "1"]
[TimeControl "5400+30"]

{[%evp 20,115,0,-16,-24,-31,0,0,0,-11,0,0,6,13,33,39,43,32,49,43,48,41,52,55,248,237,334,327,327,343,348,346,351,138,144,141,144,150,139,154,142,154,146,106,114,110,108,101,124,110,127,127,252,248,223,167,230,230,239,211,273,273,268,173,174,182,177,176,272,280,272,272,270,250,244,256,215,214,224,182,137,97,220,229,363,362,616,606,626,618,1071,993,1508,1071,1325,583,29946,29960]} 1. Nf3 {[%emt 0:00:07]} d5 {[%emt 0:02:40]} 2. g3 {[%emt 0:00:04]} g6 {[%emt 0:02:34]} 3. Bg2 {[%emt 0:01:41]} Bg7 {[%emt 0:00:10]} 4. c4 {[%emt 0:00:12]} c6 {[%emt 0:04:40]} 5. Qa4 {[%emt 0:00:27]} Nf6 {[%emt 0:02:49]} 6. cxd5 {[%emt 0:00:12] A11: English Opening: 1...c6.} Nxd5 {[%emt 0:00:40]} 7. h4 $5 {[%emt 0:01:07][%mdl 4] Exploring less charted territory.} Nd7 $146 {[%emt 0:01:46]} ({Predecessor:} 7... Nf6 8. Nc3 O-O 9. d4 Nbd7 10. e4 e5 11. dxe5 Ng4 12. O-O Ndxe5 13. Nxe5 Bxe5 {½-½ Aabling Thomsen,J (2390)-Nielsen,V (2302) Odense IM-B 2017 (4)}) 8. h5 {[%emt 0:08:35]} N7b6 {[%emt 0:02:26]} 9. Qd1 {[%emt 0:04:36]} Bg4 {[%emt 0:03:30]} 10. h6 {[%emt 0:01:43]} Bf6 {[%emt 0:02:10]} 11. d4 {[%emt 0:02:44]} Bxf3 {[%emt 0:03:14]} 12. Bxf3 {[%emt 0:00:05]} e5 {[%emt 0:02:58]} 13. dxe5 {[%emt 0:03:40]} Bxe5 {[%emt 0:00:24]} 14. O-O {[%emt 0:05:55]} O-O {[%emt 0:03:25]} 15. Qb3 {[%emt 0:05:37]} Qe7 {[%emt 0:03:38]} 16. Nc3 {[%emt 0:03:50]} Rad8 {[%emt 0:11:30]} 17. Nxd5 {[%emt 0:04:27]} Nxd5 {[%emt 0:04:20]} 18. Rd1 {[%emt 0:00:24]} Bf6 {[%emt 0:06:47]} 19. Bd2 {[%emt 0:04:30]} Rfe8 {[%emt 0:01:17]} 20. a4 {[%emt 0:04:10]} b6 {[%emt 0:06:47]} 21. a5 {[%emt 0:17:28]} Qe5 $2 {[%emt 0:07:28]} ({Better is} 21... Qe6 $14) 22. e4 {[%emt 0:04:38]} Nc7 {[%emt 0:06:26]} (22... Qxb2 $142 23. Qxb2 Bxb2) 23. axb6 $18 {[%emt 0:01:30]} axb6 {[%emt 0:00:20]} 24. Bf4 {[%emt 0:06:00]} (24. Qxb6 Qxb2 25. Qxc7 Rxd2 $16) 24... Qe7 {[%emt 0:00:09]} 25. Rxd8 {[%emt 0:05:53]} Rxd8 {[%emt 0:00:25]} 26. Ra7 $2 {[%emt 0:00:41]} (26. Qxb6 $18 Ne6 27. e5 (27. Qxc6 Nd4 $17)) 26... Qe6 $16 {[%emt 0:03:46] [#]} 27. Qxe6 $1 {[%emt 0:05:16]} (27. Qxb6 Nb5 $16) 27... Nxe6 {[%emt 0:00:07]} 28. e5 {[%emt 0:00:10]} Bh8 {[%emt 0:00:41]} 29. Bxc6 {[%emt 0:01:41]} g5 {[%emt 0:00:09]} 30. Be3 {[%emt 0:00:10]} Bxe5 {[%emt 0:00:15]} 31. b4 {[%emt 0:03:29]} Bd4 {[%emt 0:04:19]} 32. Bxd4 {[%emt 0:02:28]} Rxd4 {[%emt 0:00:05] [#]} 33. b5 $1 {[%emt 0:00:29]} Kf8 {[%emt 0:06:46]} 34. Rb7 {[%emt 0:00:14]} Rd6 {[%emt 0:01:28]} 35. Rxb6 {[%emt 0:00:05]} Nd4 {[%emt 0:00:08]} (35... Nd8 $16) 36. Rb8+ $18 {[%emt 0:01:39]} Ke7 {[%emt 0:00:02]} 37. Rb7+ {[%emt 0:01:20]} Kf8 {[%emt 0:02:25]} (37... Ke6 $142) 38. Be4 $18 {[%emt 0:01:24]} f5 {[%emt 0:01:32]} 39. Bg2 {[%emt 0:00:24]} Ne2+ {[%emt 0:03:24]} 40. Kf1 {[%emt 0:00:03]} Nc3 {[%emt 0:00:02]} 41. Bc6 {[%emt 0:00:16]} (41. Rxh7 $2 Rd1#) 41... Rxh6 {[%emt 0:00:09]} 42. Rc7 {[%emt 0:00:49]} Na4 {[%emt 0:00:21]} 43. Ke2 {[%emt 0:00:50]} Re6+ {[%emt 0:00:43]} (43... Rd6 $142 44. Rxh7 Nc5) 44. Kd3 $18 {[%emt 0:00:18]} Re7 {[%emt 0:00:49]} 45. Rc8+ {[%emt 0:00:19]} Kf7 {[%emt 0:00:10]} 46. Bd5+ {[%emt 0:00:39]} Kg7 {[%emt 0:00:34]} 47. Rc6 {[%emt 0:00:51]} Rb7 {[%emt 0:02:23]} 48. Bb3 {[%emt 0:00:08]} Nb6 {[%emt 0:00:38]} 49. Kc3 {[%emt 0:00:37]} h5 {[%emt 0:00:43]} 50. Be6 {[%emt 0:00:10]} Na8 {[%emt 0:00:39]} (50... h4 $16 {is a better defense.}) 51. Kc4 $18 {[%emt 0:00:29]} ({Worse is} 51. Bxf5 Rxb5 52. Bd3 (52. Rg6+ Kf7 $11) 52... Ra5 $11) 51... h4 {[%emt 0:00:35]} (51... f4 {was worth a try.} 52. gxf4 gxf4) 52. Bxf5 $18 {[%emt 0:00:27]} Rf7 $2 {[%emt 0:00:29]} (52... Re7 53. Rg6+ Kf8 54. Rf6+ (54. Rxg5 hxg3 55. fxg3 Re5 $18) 54... Kg7 55. Rg6+ Kf7) 53. Rg6+ $18 {[%emt 0:00:19]} Kf8 {[%emt 0:00:12]} 54. Rxg5 {[%emt 0:00:25]} hxg3 {[%emt 0:00:13]} 55. fxg3 {[%emt 0:00:06]} Ke7 {[%emt 0:00:10]} 56. g4 {[%emt 0:00:20]} Kd6 {[%emt 0:00:53]} 57. Rg6+ {[%emt 0:00:13]} (57. Kd4 $142 {Black must now prevent Rg6+.} Rf8 58. Rg6+ Ke7 59. Kc5) 57... Kc7 {[%emt 0:00:03]} 58. Kc5 {[%emt 0:00:19]} 1-0

[Event "9th Porticcio Open 2024"]
[Site "Porticcio"]
[Date "2024.07.03"]
[Round "7.4"]
[White "Hamdouchi, Hicham"]
[Black "Yankelevich, Lev"]
[Result "1/2-1/2"]
[ECO "C43"]
[WhiteElo "2527"]
[BlackElo "2416"]
[Annotator "TA"]
[PlyCount "61"]
[EventDate "2024.07.01"]
[EventType "swiss"]
[EventCountry "FRA"]
[SourceTitle "playchess.com"]
[Source "ChessBase"]
[SourceQuality "1"]
[TimeControl "5400+30"]

{[%evp 9,61,4,9,11,16,7,10,-25,14,0,18,16,30,41,19,0,0,0,0,-8,13,-52,10,0,0,-19,57,50,37,41,61,60,62,65,97,66,116,86,122,112,242,230,281,235,324,159,166,76,277,0,171,0,265,0]} 1. e4 {[%emt 0:00:02]} e5 {[%emt 0:00:17]} 2. Nf3 {[%emt 0:00:20]} Nf6 {[%emt 0:00:51]} 3. d4 {[%emt 0:02:30]} Nxe4 {[%emt 0:00:10]} 4. dxe5 {[%emt 0:00:08]} d5 {[%emt 0:00:28]} 5. Nbd2 {[%emt 0:00:07]} Qd7 {[%emt 0:01:00]} 6. Bd3 {[%emt 0:02:13]} Nc5 {[%emt 0:00:51]} 7. Be2 {[%emt 0:00:22]} Ne6 {[%emt 0:00:14]} 8. Nf1 {[%emt 0:03:37] The position is equal.} c5 {[%emt 0:03:39]} 9. Ng3 {[%emt 0:02:07]} Nc6 {[%emt 0:00:25]} 10. O-O {[%emt 0:01:16]} h6 {[%emt 0:06:57]} 11. c3 {[%emt 0:09:13]} b6 {[%emt 0:00:33]} 12. a3 {[%emt 0:06:11]} Bb7 {[%emt 0:01:22]} 13. b4 {[%emt 0:01:29]} O-O-O {[%emt 0:03:02]} 14. Bb5 {[%emt 0:03:24]} Qc7 {[%emt 0:01:21]} 15. Qe2 {[%emt 0:04:35]} ({White should play} 15. bxc5 $11 Bxc5 16. Bxc6 Bxc6 17. Nd4) 15... g5 {[%emt 0:27:12]} (15... Kb8 $15) 16. bxc5 {[%emt 0:05:11]} Bxc5 {[%emt 0:02:37] White must now prevent ...d4.} 17. Nf5 {[%emt 0:00:41]} Ne7 {[%emt 0:08:25]} (17... d4 $11 18. N3xd4 Ncxd4 19. cxd4 Bxd4 20. Nd6+ Kb8) 18. Nxe7+ $14 {[%emt 0:03:57]} Qxe7 {[%emt 0:00:28]} 19. Rd1 {[%emt 0:03:08]} f6 {[%emt 0:09:27]} 20. a4 {[%emt 0:14:54]} Nc7 {[%emt 0:01:38]} 21. exf6 {[%emt 0:01:44]} Qxf6 {[%emt 0:01:11][%cal Oc8b8]} 22. Nd4 {[%emt 0:01:30]} h5 {[%emt 0:02:06]} (22... Kb8 $14) 23. Be3 {[%emt 0:01:58]} g4 {[%emt 0:00:17]} 24. Bd3 {[%emt 0:01:52]} Ne6 {[%emt 0:01:22]} (24... a5 $16 {was necessary.}) 25. a5 $18 {[%emt 0:03:53]} Rde8 {[%emt 0:04:25]} 26. Qc2 {[%emt 0:27:08]} Kb8 {[%emt 0:01:11]} 27. axb6 {[%emt 0:00:00]} (27. Rdb1 $18 {and the rest is easy.}) 27... Bxb6 $16 {[%emt 0:00:33]} 28. Bf5 {[%emt 0:00:00]} (28. Rdb1 $18) 28... Ng7 $2 {[%emt 0:01:26] [#]} (28... Nxd4 $16 {was worth a try.} 29. Bxd4 Qc6) 29. Bd3 {[%emt 0:00:00] Ba6 is the strong threat.} Ne6 {[%emt 0:03:14]} 30. Bf5 {[%emt 0:00:00]} (30. Rdb1 $142) 30... Ng7 $1 $18 {[%emt 0:00:04]} 31. Bd3 $2 {[%emt 0:00:00] Weighted Error Value: White=0.45/Black=0.35.  Loses game:     	---       	Black=1      Missed win:     	White=2     	---        Mistake:       	White=3     	Black=4      Inaccurate:     	White=4     	Black=4      OK:         	White=9     	Black=4      Best:        	---       	Black=2      Strong:       	---       	Black=1} (31. Bd7 $18) 1/2-1/2

[Event "9th Porticcio Open 2024"]
[Site "Porticcio"]
[Date "2024.07.03"]
[Round "7.5"]
[White "Nayak Rajesh"]
[Black "Clarke, Brandon G I"]
[Result "1/2-1/2"]
[ECO "B72"]
[WhiteElo "2185"]
[BlackElo "2498"]
[Annotator "TA"]
[PlyCount "61"]
[EventDate "2024.07.01"]
[EventType "swiss"]
[EventCountry "FRA"]
[SourceTitle "playchess.com"]
[Source "ChessBase"]
[SourceQuality "1"]
[TimeControl "5400+30"]

{[%evp 10,61,61,52,68,58,71,62,86,53,45,41,36,44,43,24,22,19,17,22,20,13,19,0,0,0,0,-12,-6,-8,-8,-9,-5,-11,0,0,0,0,0,-8,0,0,0,0,0,0,0,0,0,0,0,0,0,-4]} 1. e4 {[%emt 0:00:05]} c5 {[%emt 0:00:02]} 2. Nf3 {[%emt 0:00:11]} d6 {[%emt 0:00:05]} 3. d4 {[%emt 0:00:06]} cxd4 {[%emt 0:00:04]} 4. Nxd4 {[%emt 0:00:06]} Nf6 {[%emt 0:00:06]} 5. Nc3 {[%emt 0:00:06]} g6 {[%emt 0:00:21]} 6. Be3 {[%emt 0:00:26] White is more active.} Nc6 {[%emt 0:00:16]} 7. f3 {[%emt 0:00:27] Dodges Ng4} e5 {[%emt 0:00:28]} 8. Nb3 {[%emt 0:01:56]} Be6 {[%emt 0:00:03] White is slightly better.} 9. Qd2 {[%emt 0:06:17]} d5 {[%emt 0:00:05]} 10. exd5 {[%emt 0:00:11]} Nxd5 {[%emt 0:00:02]} 11. Nxd5 {[%emt 0:00:09]} Qxd5 {[%emt 0:00:03]} 12. Qxd5 {[%emt 0:01:33]} Bxd5 {[%emt 0:00:03]} 13. O-O-O {[%emt 0:00:16] The position is equal.} O-O-O {[%emt 0:00:03]} 14. Bb5 {[%emt 0:16:34]} a6 {[%emt 0:00:14]} 15. Bxc6 {[%emt 0:02:53]} Bxc6 {[%emt 0:00:19]} 16. Rxd8+ {[%emt 0:00:15]} Kxd8 {[%emt 0:00:02]} 17. Na5 {[%emt 0:00:40]} Kc7 {[%emt 0:00:19]} 18. Nxc6 {[%emt 0:00:36]} Kxc6 $11 {[%emt 0:00:02][%mdl 4096] Endgame. KRB-KRB} 19. Rd1 {[%emt 0:01:09]} Bd6 {[%emt 0:01:25]} 20. h3 {[%emt 0:00:44]} f5 {[%emt 0:00:28]} 21. c4 {[%emt 0:02:10]} Re8 {[%emt 0:00:10]} 22. Kc2 {[%emt 0:02:35]} b5 {[%emt 0:02:43]} 23. cxb5+ {[%emt 0:01:15]} axb5 {[%emt 0:00:02]} 24. a3 {[%emt 0:03:23]} Ra8 {[%emt 0:01:51]} 25. Rd3 {[%emt 0:05:40]} Ra4 {[%emt 0:05:20]} 26. Rc3+ {[%emt 0:00:45]} Kd5 {[%emt 0:00:05]} 27. Rd3+ {[%emt 0:00:17]} Kc6 {[%emt 0:07:23]} 28. Rc3+ {[%emt 0:00:20]} Kd5 {[%emt 0:00:02]} 29. Rd3+ {[%emt 0:00:32]} Kc6 {[%emt 0:00:02]} 30. Rc3+ {[%emt 0:00:06]} Kd5 {[%emt 0:00:03]} 31. Rd3+ {[%emt 0:54:17] Weighted Error Value: White=0.04 (flawless) /Black=0.03 (flawless) .  Inaccurate:     	White=1     	---        OK:         	White=12    	Black=9      Best:        	---       	Black=1} 1/2-1/2

[Event "9th Porticcio Open 2024"]
[Site "Porticcio"]
[Date "2024.07.03"]
[Round "7.6"]
[White "Unuk, Laura"]
[Black "Nevednichy, Vladislav"]
[Result "1/2-1/2"]
[ECO "D00"]
[WhiteElo "2324"]
[BlackElo "2471"]
[Annotator "TA"]
[PlyCount "158"]
[EventDate "2024.07.01"]
[EventType "swiss"]
[EventCountry "FRA"]
[SourceTitle "playchess.com"]
[Source "ChessBase"]
[SourceQuality "1"]
[TimeControl "5400+30"]

{[%evp 9,158,-12,20,20,25,-8,-3,5,14,-14,-6,-26,0,-19,0,0,0,-11,22,0,43,41,41,12,37,20,33,0,27,14,95,55,104,52,139,72,63,22,35,37,45,0,25,18,21,16,47,0,63,0,0,0,0,0,0,0,0,0,0,0,0,0,0,0,0,0,8,0,0,0,0,0,0,0,0,-8,-8,-8,-8,-8,-8,-8,-8,-8,-8,-8,-8,-8,-8,-8,-16,-52,-14,-1239,-310,-995,-1149,-1435,-1641,-2028,-1798,-1595,-1271,-29961,-29961,-29967,-29968,-29951,-5098,-5084,-5077,-5069,-5069,-2949,-2704,-917,0,0,0,0,0,0,0,0,0,0,0,0,0,-8,0,0,0,0,0,0,0,0,0,0,0,0,0,0,0,0,0,0,0,0,0]} 1. d4 {[%emt 0:00:04]} Nf6 {[%emt 0:00:15]} 2. Nc3 {[%emt 0:00:45]} d5 {[%emt 0:00:34]} 3. Bf4 {[%emt 0:00:09]} a6 {[%emt 0:01:26]} 4. e3 {[%emt 0:00:32]} e6 {[%emt 0:00:18]} 5. g4 {[%emt 0:03:20][%cal Bg2g4,Bg4g5][%mdl 32]} c5 {[%emt 0:12:30]} 6. g5 {[%emt 0:02:57]} Nfd7 {[%emt 0:00:15]} 7. Bg2 {[%emt 0:04:17]} Nc6 {[%emt 0:01:04]} 8. Nf3 {[%emt 0:17:19][%cal Bg1f3,Bf3e5,Be5g4,Bg4f6][%mdl 32]} Nb6 {[%emt 0:19:40]} 9. h4 {[%emt 0:16:33][%cal Bh2h4,Bh4h5,Bh5h6][%mdl 32]} Bd6 {[%emt 0:05:46]} 10. dxc5 {[%emt 0:02:23]} Bxc5 {[%emt 0:00:04]} 11. h5 {[%emt 0:02:43]} Qe7 {[%emt 0:03:45]} 12. h6 {[%emt 0:05:22]} g6 {[%emt 0:05:25]} 13. Ne5 {[%emt 0:02:41]} O-O {[%emt 0:14:57]} 14. Ng4 {[%emt 0:04:45]} Rd8 {[%emt 0:01:32]} 15. Nf6+ {[%emt 0:02:54]} Kh8 {[%emt 0:00:03]} 16. Qe2 {[%emt 0:02:24]} e5 {[%emt 0:10:22]} 17. Bg3 {[%emt 0:03:53]} (17. Ncxd5 Nxd5 (17... Rxd5 18. Bxd5 exf4 19. Bxc6 $17) 18. Nxd5 Rxd5 19. Bxd5 exf4 $17) 17... Be6 {[%emt 0:00:07]} 18. Rd1 {[%emt 0:14:13][%cal Rc3d5]} Bb4 {[%emt 0:12:45]} (18... d4 $5 19. exd4 exd4 20. Bxc6 dxc3 21. Rxd8+ Qxd8 22. bxc3 bxc6 $11) 19. O-O {[%emt 0:04:12]} Bxc3 {[%emt 0:00:14]} (19... d4 $11 {keeps the balance.} 20. exd4 Bc4) 20. bxc3 $16 {[%emt 0:00:05][%cal Oc3c4]} Nd7 {[%emt 0:00:07]} (20... e4 $14) 21. Nxd5 {[%emt 0:06:22] White has more active pieces.} ({But not} 21. Bxd5 Nxf6 22. gxf6 Qxf6 $14) 21... Bxd5 {[%emt 0:01:21]} (21... Qxg5 $14 22. Nc7 Rac8) 22. Bxd5 {[%emt 0:01:24]} (22. Rxd5 $142 {Black must now prevent Rb1.} Qxg5 23. Qc4) 22... Qxg5 {[%emt 0:00:06]} 23. Bxf7 {[%emt 0:00:47]} Nf6 {[%emt 0:00:33] Prevents Bd5} 24. Rxd8+ {[%emt 0:01:11]} Rxd8 {[%emt 0:00:04]} 25. Rd1 {[%emt 0:00:17]} Rf8 {[%emt 0:04:56]} 26. Be6 {[%emt 0:00:18]} Qxh6 {[%emt 0:00:46]} 27. Qc4 {[%emt 0:00:52]} Qh5 {[%emt 0:02:03]} 28. Rd2 {[%emt 0:00:44]} (28. Rb1 $1 $14 {should be considered.}) 28... Qf3 {[%emt 0:00:49]} ({Better is} 28... e4 $11) 29. Bd5 {[%emt 0:00:31]} (29. Bd7 $14) 29... Nxd5 $11 {[%emt 0:00:27]} 30. Qxd5 {[%emt 0:00:30]} Qxd5 {[%emt 0:00:40]} 31. Rxd5 {[%emt 0:00:04][%cal Bd2d5,Bd5e5,Be5e6,Be6b6][%mdl 32]} Rf7 {[%emt 0:01:01] Prevents Rd7} 32. Bxe5+ {[%emt 0:00:59]} Nxe5 {[%emt 0:00:02]} 33. Rxe5 {[%emt 0:00:05][%mdl 4096] Endgame. KR-KR} Rc7 {[%emt 0:00:04]} 34. a4 {[%emt 0:00:12]} Kg7 {[%emt 0:00:08]} 35. Re6 {[%emt 0:00:26]} h5 {[%emt 0:00:45]} 36. Rb6 {[%emt 0:00:48]} Kh6 {[%emt 0:00:03]} 37. Kg2 {[%emt 0:00:56]} Kg5 {[%emt 0:00:08]} 38. a5 {[%emt 0:00:30]} Kf5 {[%emt 0:00:07]} 39. c4 {[%emt 0:00:59]} g5 {[%emt 0:00:07]} 40. c5 {[%emt 0:00:15]} Rxc5 {[%emt 0:01:53]} 41. Rxb7 {[%emt 0:00:04]} Rxa5 {[%emt 0:00:04]} 42. Rf7+ {[%emt 0:00:48]} Kg4 {[%emt 0:00:52]} 43. f3+ {[%emt 0:00:43]} Kh4 {[%emt 0:00:05]} 44. Rc7 {[%emt 0:00:10] Against Rc5} Rd5 {[%emt 0:00:36] [#] Hoping for ...Rd2+.} 45. Rc4+ {[%emt 0:00:46]} g4 {[%emt 0:00:04]} 46. fxg4 {[%emt 0:00:14]} hxg4 {[%emt 0:00:03]} 47. e4 {[%emt 0:00:17]} Rd2+ {[%emt 0:00:12]} 48. Kf1 {[%emt 0:00:36]} Kh3 {[%emt 0:01:58] ...g3 would now be deadly.} 49. Rc6 {[%emt 0:00:45]} a5 {[%emt 0:00:11]} 50. e5 $1 {[%emt 0:00:50]} Rd5 {[%emt 0:01:01]} 51. Rh6+ $2 {[%emt 0:00:25][%mdl 8192]} (51. Kf2 $11 {and White stays safe.} Kh4 52. Ke3) 51... Kg3 $19 {[%emt 0:00:03]} 52. e6 $2 {[%emt 0:00:33]} (52. Re6 Kf4 53. Ra6) 52... Re5 {[%emt 0:00:08]} 53. c4 {[%emt 0:00:32]} a4 {[%emt 0:00:05] Threatens to win with ...a3.} 54. e7 {[%emt 0:00:22]} Rxe7 {[%emt 0:00:05]} 55. Ra6 {[%emt 0:00:06] Inhibits Ra7.} Rf7+ {[%emt 0:00:11]} 56. Ke1 {[%emt 0:00:41]} Kh2 {[%emt 0:01:01]} 57. Rxa4 {[%emt 0:00:27]} g3 {[%emt 0:00:08]} 58. Ra8 {[%emt 0:00:33]} g2 {[%emt 0:02:32]} (58... Rc7 $142 59. Rh8+ Kg2 60. Rg8 Rxc4 61. Ke2 Kh2 62. Rh8+ Kg1 63. Rg8 g2 64. Rh8 Re4+ 65. Kf3 Re7 66. Rg8 Kf1 (66... Rf7+ $2 67. Ke2 $19) 67. Rxg2 Rf7+ 68. Kg3 Rg7+ 69. Kf4 Kxg2 (69... Rxg2 {leads to mate.} 70. Ke5 Rd2 71. Kf4 Re2 72. Kf3 Re7 73. Kf4 Kf2 74. Kf5 Kf3 75. Kf6 Re8 76. Kg7 Re3 77. Kg6 Kg4 78. Kf6 Re4 79. Kg6 Rf4 80. Kh6 Kf5 81. Kg7 Kg5 82. Kh8 Kh6 83. Kg8 Kg6 84. Kh8 Rf8#) 70. Ke4 Rd7 71. Ke3 Rd1 72. Ke4 Kf2 73. Kf4 Re1 74. Kg4 Re4+ 75. Kg5 Kg3 76. Kf5 Re1 77. Kg6 Kf4 78. Kf6 Kg4 79. Kg7 Kg5 80. Kf7 Re4 81. Kg7 Rf4 82. Kh7 Kf6 83. Kg8 Rh4 84. Kf8 Rh8#) 59. Rh8+ {[%emt 0:00:08]} Kg3 {[%emt 0:00:03]} 60. Rg8+ {[%emt 0:00:05] [#]} Kf3 $1 {[%emt 0:00:02]} 61. c5 {[%emt 0:01:28]} Re7+ {[%emt 0:01:16]} 62. Kd2 {[%emt 0:00:08]} Re4 $2 {[%emt 0:01:35]} ({Black should try} 62... Rc7 $19 63. Rf8+ Kg3 64. Rg8+ Kh2 65. Rh8+ Kg1) 63. c6 $11 {[%emt 0:01:03] The position is equal.} Rd4+ {[%emt 0:00:16]} (63... Rc4 $5 64. Rf8+ $8 Kg3 65. Rg8+ Kf2 66. Rf8+ Kg1 $11) 64. Ke1 $1 {[%emt 0:00:19]} Rc4 {[%emt 0:00:40]} (64... Rd8 $5 65. Rg7 $8 Re8+ 66. Kd2 Re7 $11) 65. Rf8+ {[%emt 0:00:16]} Kg3 {[%emt 0:00:16]} (65... Ke3 $5 66. Re8+ $8 Kf3 67. Rf8+ Kg3 68. Rg8+ Kh2 69. Rh8+ Kg1 $11) 66. Rg8+ {[%emt 0:00:05]} Kh2 {[%emt 0:00:04]} (66... Kf3 $5 67. Rf8+ $8 Kg3 68. Rg8+ Kh2 69. Rh8+ Kg1 $11) 67. Rh8+ {[%emt 0:00:57]} Kg1 {[%emt 0:00:41]} (67... Kg3 $5 68. Rg8+ $8 Kh2 69. Rh8+ Kg1 $11) 68. Rh6 $1 {[%emt 0:00:04]} Re4+ {[%emt 0:00:17]} 69. Kd2 {[%emt 0:00:04]} Kf2 {[%emt 0:00:19]} 70. Rf6+ {[%emt 0:00:19]} Kg3 {[%emt 0:00:04] ( -> ...Rg4)} 71. Rg6+ {[%emt 0:00:16]} Kf3 {[%emt 0:00:26]} 72. Rf6+ {[%emt 0:00:43]} Rf4 {[%emt 0:00:10]} 73. Rxf4+ {[%emt 0:00:19]} Kxf4 {[%emt 0:00:02] KP-KP} 74. c7 {[%emt 0:00:03]} g1=Q {[%emt 0:00:05]} 75. c8=Q {[%emt 0:00:05] Prevents Qc5} Qe3+ {[%emt 0:00:08]} 76. Kd1 {[%emt 0:00:03]} Qf3+ {[%emt 0:00:09]} 77. Kd2 {[%emt 0:00:05]} Qe3+ {[%emt 0:00:03]} 78. Kd1 $1 {[%emt 0:00:02]} Qf3+ {[%emt 0:00:04]} 79. Kd2 {[%emt 0:00:01]} Qe3+ {[%emt 0:00:11] And White is the lucky defender.   Weighted Error Value: White=0.60/Black=0.21 (precise) .  Loses game:     	White=1     	---        Mistake:       	White=4     	Black=4      Inaccurate:     	White=7     	Black=7      OK:         	White=22    	Black=19     Best:        	White=11    	Black=3      Strong:       	White=4     	---} 1/2-1/2